bitfinex/quotes_ETHUSD_20220308
["timestamp","ask_amount","ask_price","bid_price","bid_amount"]
[1646771991987,0.04810493,2568.5,2568.4,1.11567149]
[1646771993092,0.04810493,2568.5,2568.4,0.02254892]
[1646771995529,0.04810493,2568.5,2568.4,0.0213267]
[1646771996833,0.02330745,2568.6,2568.4,11.3561355]
[1646771997042,4.7962,2569.4,2568.5,3.8878]
[1646771997043,1.8343,2569.4,2568.5,3.8878]
[1646771997233,1.8343,2569.4,2568.7,1.36115]
[1646771997481,0.01476988,2569.0,2568.7,1.36115]
[1646771997980,0.01476988,2569.0,2568.8,0.85859045]
[1646771998581,0.00369277,2569.0,2568.8,0.85859045]
[1646771998783,0.00369277,2569.0,2568.8,2.80528045]
[1646771999182,0.00369277,2569.0,2568.8,0.85859045]
[1646771999382,0.13819996,2569.5,2568.8,0.85859045]
[1646771999784,1.1934,2569.8,2568.9,4.47348]
[1646771999785,0.00369274,2569.0,2568.9,4.47348]
[1646771999984,0.00369274,2569.0,2568.9,2.12928]
[1646772000184,0.00369274,2569.0,2568.9,3.12928]
[1646772000386,0.00369274,2569.0,2568.9,2.12928]
[1646772000581,0.00369274,2569.0,2568.9,2.74148]
[1646772000782,0.00369274,2569.0,2568.9,1.74148]
[1646772000986,5.8591307,2570.3,2568.9,2.74148]
[1646772001243,2.3591307,2570.4,2569.0,3.74150581]
[1646772001451,2.7658163,2570.5,2569.5,0.97301]
[1646772001643,0.5,2570.6,2569.9,0.70358205]
[1646772001842,0.5,2570.6,2569.9,1.17158205]
[1646772002044,0.5,2570.6,2569.9,1.47158205]
[1646772002243,1.0,2570.6,2570.0,0.9729031]
[1646772002445,3.5,2570.5,2569.9,2.24579]
[1646772002648,3.5,2570.5,2569.9,0.3]
[1646772002949,1.0,2570.6,2569.5,1.1558]
[1646772003146,3.5,2570.5,2569.5,0.768]
[1646772003347,3.5,2570.5,2569.5,1.61737519]
[1646772003950,1.0,2570.6,2569.6,3.8923929]
[1646772004349,1.0,2570.6,2569.6,4.1923929]
[1646772004546,0.00381582,2570.1,2569.6,4.1923929]
[1646772005187,0.00381582,2570.1,2569.2,1.0]
[1646772005385,0.00381582,2570.1,2568.9,0.973428]
[1646772005584,0.00381582,2570.1,2568.9,0.02247362]
[1646772005585,0.03969913,2569.0,2568.9,0.02247362]
[1646772006187,0.03969913,2569.0,2568.9,0.81391638]
[1646772006496,3.5,2569.9,2569.1,0.07939825]
[1646772006790,15.6878,2569.9,2569.1,0.07939825]
[1646772006991,0.01526388,2569.5,2569.1,0.07939825]
[1646772007791,0.01526388,2569.5,2569.1,1.32340374]
[1646772007992,0.01526388,2569.5,2569.1,1.71120374]
[1646772008191,0.0038163,2569.4,2569.1,1.62340374]
[1646772008392,0.0038163,2569.4,2569.1,0.84739825]
[1646772008634,3.8878,2570.0,2569.1,1.35276825]
[1646772008832,0.3878,2570.0,2569.1,1.35276825]
[1646772009338,1.06905425,2569.9,2569.1,0.07939825]
[1646772009534,0.3878,2569.8,2569.1,0.07939825]
[1646772009737,3.8878,2569.8,2569.1,0.07939825]
[1646772009934,15.6878,2569.8,2569.1,0.07939825]
[1646772010335,12.77365,2569.6,2569.1,0.07939825]
[1646772010536,15.3,2569.5,2569.1,0.07939825]
[1646772010736,0.92194457,2569.3,2569.1,0.07939825]
[1646772010936,3.5,2569.2,2569.1,0.07939825]
[1646772011437,0.92194457,2569.3,2568.7,0.9974]
[1646772011438,5.5,2569.1,2568.7,0.9974]
[1646772011648,3.5,2569.0,2568.7,0.9974]
[1646772011842,3.8,2569.0,2568.7,0.9974]
[1646772012241,0.76056949,2568.9,2568.7,0.9974]
[1646772012479,3.5,2568.8,2568.7,0.9974]
[1646772012677,1.14836949,2568.9,2567.5,4.2628919]
[1646772012879,3.5,2568.8,2567.6,1.59248864]
[1646772013077,3.5,2568.8,2568.7,0.00381632]
[1646772013284,3.60868949,2568.9,2568.7,0.00381632]
[1646772013878,0.3878,2568.8,2567.8,1.59248864]
[1646772014079,3.5,2568.7,2567.9,2.56636864]
[1646772014281,3.60868949,2568.9,2568.0,1.59248864]
[1646772014480,3.5,2568.8,2568.0,1.59248864]
[1646772015079,3.8878,2568.8,2568.0,1.59248864]
[1646772015481,3.8878,2568.8,2568.3,0.00381659]
[1646772015482,3.5,2568.8,2568.3,0.00381659]
[1646772016332,0.81083896,2568.5,2568.3,0.00381659]
[1646772016532,0.81083896,2568.5,2568.4,0.00349996]
[1646772017133,4.31083896,2568.5,2568.4,0.00349996]
[1646772017533,4.31083896,2568.5,2568.1,1.59242636]
[1646772017735,0.3878,2568.4,2567.4,1.01104348]
[1646772017934,0.97421,2568.2,2567.5,1.5924912]
[1646772018134,1.36201,2568.2,2567.5,1.5924912]
[1646772018332,0.97421,2568.2,2567.5,1.5924912]
[1646772018734,1.36201,2568.2,2567.5,1.5924912]
[1646772018936,0.97421,2568.2,2567.6,1.5924912]
[1646772019134,0.97421,2568.2,2567.7,1.5924912]
[1646772019334,0.97421,2568.2,2567.8,1.5924912]
[1646772019538,0.97421,2568.2,2567.9,1.5924912]
[1646772019736,3.5,2568.1,2568.0,1.5924912]
[1646772019983,3.5,2568.1,2567.3,0.71104348]
[1646772020184,3.5,2568.1,2567.9,0.00348757]
[1646772020585,18.3,2568.1,2567.9,0.00348757]
[1646772020783,4.17580079,2568.0,2567.9,0.00348757]
[1646772021187,4.17580079,2568.0,2567.6,1.5924912]
[1646772021188,0.97442,2567.8,2567.6,1.5924912]
[1646772021386,0.97442,2567.8,2567.7,1.5924912]
[1646772021596,1.94973,2567.4,2565.9,0.80706416]
[1646772021796,1.94973,2567.4,2565.4,1.39216649]
[1646772021797,3.0,2566.1,2565.4,1.39216649]
[1646772021992,3.0,2566.1,2565.4,0.41916338]
[1646772021993,4.10619996,2566.0,2565.4,0.41916338]
[1646772022192,4.10619996,2566.0,2564.1,4.40623387]
[1646772022193,19.48056948,2566.0,2564.4,1.41962326]
[1646772022388,19.48056948,2566.0,2564.3,1.41962326]
[1646772022389,12.1878,2565.6,2564.3,1.41962326]
[1646772022588,1.95096,2565.3,2564.2,1.41962326]
[1646772022789,1.95096,2565.3,2564.0,4.34599977]
[1646772022790,0.3878,2565.2,2564.1,1.41962326]
[1646772023188,0.3878,2565.2,2563.9,1.41962326]
[1646772023489,12.1878,2565.2,2563.7,4.91962326]
[1646772023761,12.1878,2565.2,2563.6,3.5]
[1646772023762,2.33929,2564.8,2563.6,3.5]
[1646772024062,1.95149,2564.8,2563.4,1.41962326]
[1646772024458,1.95149,2564.8,2563.3,1.41962326]
[1646772024660,1.95169,2564.3,2563.3,1.41962326]
[1646772024862,1.95169,2564.3,2562.7,3.75]
[1646772024863,1.95169,2564.3,2563.1,1.41962326]
[1646772025061,1.95169,2564.3,2564.0,0.00381761]
[1646772025662,1.95176,2564.2,2564.0,0.00381761]
[1646772026267,1.95176,2564.2,2563.0,0.00096]
[1646772026268,0.97591,2564.2,2563.0,0.00096]
[1646772026462,1.22652761,2564.3,2563.0,0.00096]
[1646772026666,0.97584,2563.9,2563.0,0.00096]
[1646772026864,0.97584,2563.9,2562.8,0.87634479]
[1646772028088,3.98166092,2564.5,2562.8,0.87634479]
[1646772028089,4.1101,2564.7,2562.8,0.87634479]
[1646772028291,4.1101,2564.7,2562.9,0.97575]
[1646772028489,4.1101,2564.7,2563.0,0.3]
[1646772028689,4.1101,2564.7,2563.2,0.25]
[1646772028888,3.5,2564.6,2563.2,0.25]
[1646772029093,4.1101,2564.7,2563.3,0.65688054]
[1646772029290,4.47558,2564.6,2563.3,0.95688054]
[1646772029493,4.47558,2564.6,2563.3,0.3]
[1646772029891,4.47558,2564.6,2563.9,0.00381345]
[1646772030290,4.47558,2564.6,2564.1,0.0420545]
[1646772030996,4.47558,2564.6,2564.2,0.00381321]
[1646772031444,0.97558,2564.6,2564.2,0.00381321]
[1646772031638,1.1656,2564.7,2564.2,0.00381321]
[1646772031838,3.46519456,2565.2,2564.2,0.00381321]
[1646772032038,2.894,2565.2,2564.1,0.0420545]
[1646772032238,2.894,2565.2,2564.3,0.00381318]
[1646772032436,2.894,2565.2,2564.4,0.87038479]
[1646772032640,0.2824,2565.3,2564.3,0.00381318]
[1646772032838,0.2824,2565.3,2564.4,0.3]
[1646772033036,0.2824,2565.3,2564.3,0.00381318]
[1646772033239,0.2824,2565.3,2564.1,0.0420545]
[1646772033438,0.2824,2565.3,2564.7,0.0038129]
[1646772034337,0.2824,2565.3,2564.2,0.86570387]
[1646772034637,0.2824,2565.3,2564.9,0.0036841]
[1646772034638,0.97533,2565.3,2564.9,0.0036841]
[1646772035186,1.1522,2565.5,2564.9,0.0036841]
[1646772035586,1.94555353,2566.0,2564.4,0.0227702]
[1646772035785,1.94555353,2566.0,2564.6,11.8]
[1646772035786,0.13819996,2566.0,2564.6,11.8]
[1646772035984,0.00368217,2566.3,2565.0,0.00368404]
[1646772036188,0.00368217,2566.3,2565.7,0.79028061]
[1646772036387,1.92052783,2566.4,2565.5,0.3878]
[1646772036388,0.01472783,2566.4,2565.5,0.3878]
[1646772036588,0.01472783,2566.4,2565.3,0.3]
[1646772036786,0.97491,2566.4,2565.3,0.3]
[1646772036989,0.97491,2566.4,2565.1,0.6878]
[1646772037186,0.97491,2566.4,2565.1,0.3]
[1646772037386,0.97491,2566.4,2564.9,0.3878]
[1646772037586,0.97491,2566.4,2565.4,0.70709795]
[1646772037789,3.5,2566.3,2565.4,0.70709795]
[1646772037989,0.97499,2566.2,2565.4,0.70709795]
[1646772038187,0.97499,2566.2,2565.4,0.0014385]
[1646772038829,3.5,2566.1,2565.4,0.0014385]
[1646772039029,0.9751,2565.9,2565.4,0.0014385]
[1646772039433,6.6301,2566.7,2565.4,0.0014385]
[1646772039635,3.1301,2566.7,2565.4,0.0014385]
[1646772039831,2.92496,2566.9,2565.4,0.0014385]
[1646772040031,0.04229123,2565.9,2565.5,0.25]
[1646772040232,0.04229123,2565.9,2565.4,0.0014385]
[1646772040437,0.04229123,2565.9,2565.2,1.6878]
[1646772040635,0.04229123,2565.9,2565.4,0.00351173]
[1646772041538,0.04229123,2565.9,2565.2,0.6878]
[1646772041938,0.04229123,2565.9,2565.4,0.00360218]
[1646772042782,0.04229123,2565.9,2564.7,0.40696294]
[1646772042991,0.3878,2565.8,2565.4,0.00360218]
[1646772043185,4.3558,2565.7,2565.4,0.00360218]
[1646772043383,0.78395478,2565.6,2565.4,0.00360218]
[1646772043584,3.5,2565.5,2565.4,0.00360218]
[1646772043983,0.3878,2565.4,2564.7,0.01916294]
[1646772044183,0.3878,2565.2,2564.9,0.01441106]
[1646772044782,3.8878,2565.3,2564.9,0.01441106]
[1646772044983,0.3878,2565.3,2564.9,0.01441106]
[1646772045186,0.468,2565.6,2564.1,1.09767677]
[1646772045385,4.70852032,2565.8,2564.9,0.00345402]
[1646772045782,0.57489371,2565.7,2564.9,0.00345402]
[1646772045985,0.3878,2565.5,2564.9,0.00345402]
[1646772046238,0.97542,2565.2,2564.9,0.00345402]
[1646772046439,1.36322,2565.2,2564.1,1.00987677]
[1646772046639,1.95083,2565.3,2565.2,0.00345388]
[1646772046640,1.61337643,2565.3,2565.2,0.00345388]
[1646772046839,1.61337643,2565.3,2564.8,0.00666449]
[1646772047639,0.3878,2565.2,2564.2,5.5]
[1646772047840,0.97538,2565.2,2564.2,6.5]
[1646772048043,4.70852032,2565.8,2564.2,6.8878]
[1646772049043,0.00354058,2565.4,2564.7,0.00354153]
[1646772049741,0.00354058,2565.4,2565.0,0.04342289]
[1646772049987,1.01318446,2565.7,2565.0,0.04342289]
[1646772050186,0.00354062,2565.4,2565.0,0.04342289]
[1646772051192,0.03798446,2565.7,2565.0,0.04342289]
[1646772051390,0.03798446,2565.7,2565.0,0.82163978]
[1646772051591,0.00354074,2565.4,2565.0,0.82163978]
[1646772051793,0.00354074,2565.4,2565.0,1.12163978]
[1646772052191,0.0025623,2565.4,2565.0,1.12163978]
[1646772052392,0.03798446,2565.7,2565.0,0.34342289]
[1646772052591,0.00352842,2565.4,2565.0,0.34342289]
[1646772052792,0.00352842,2565.4,2565.0,0.04342289]
[1646772053654,0.97528,2565.4,2565.0,0.04342289]
[1646772054150,0.97736041,2565.4,2565.0,0.04342289]
[1646772054752,0.00208041,2565.4,2565.0,0.04342289]
[1646772054953,0.03792916,2565.3,2565.2,0.01433364]
[1646772057392,3.53792916,2565.3,2565.2,0.01433364]
[1646772057783,4.00592916,2565.3,2565.2,0.01433364]
[1646772058288,6.78922916,2565.3,2565.2,0.01433364]
[1646772060090,6.78922916,2565.3,2565.1,0.02421895]
[1646772060294,2.82122916,2565.3,2565.1,0.02421895]
[1646772060894,0.03792916,2565.3,2565.1,0.02421895]
[1646772062142,0.69302287,2565.3,2565.1,0.02421895]
[1646772062343,3.5,2565.2,2565.1,0.02421895]
[1646772062742,3.5,2565.2,2564.8,0.01807881]
[1646772062743,11.8,2565.0,2564.8,0.01807881]
[1646772062944,15.3,2564.9,2564.8,0.01807881]
[1646772063146,15.3,2564.9,2564.8,0.01439326]
[1646772063147,15.768,2564.9,2564.8,0.01439326]
[1646772063343,15.95509371,2564.9,2564.8,0.01439326]
[1646772063543,15.95509371,2564.9,2564.8,0.0180786]
[1646772064346,15.95509371,2564.9,2564.8,0.01439326]
[1646772064985,18.66353,2564.8,2564.1,0.01474505]
[1646772065188,3.0,2564.3,2564.1,0.01474505]
[1646772065387,15.768,2564.2,2564.1,0.01474505]
[1646772065584,16.74021465,2564.2,2564.1,0.01474505]
[1646772065788,12.1878,2564.0,2563.2,0.70118913]
[1646772065984,12.1878,2564.0,2563.4,0.70118913]
[1646772065985,12.568,2564.0,2563.4,0.70118913]
[1646772066187,12.268,2564.0,2563.4,1.59511099]
[1646772066394,0.9761,2563.8,2563.5,1.59511099]
[1646772066588,0.58661308,2564.3,2564.0,1.70154195]
[1646772066789,0.58661308,2564.3,2564.1,1.5951632]
[1646772067389,0.97585,2564.2,2564.1,1.5951632]
[1646772067991,2.33897,2564.8,2564.1,1.5951632]
[1646772068390,0.00209342,2564.4,2564.1,1.5951632]
[1646772069441,4.47564,2564.5,2564.1,1.5951632]
[1646772069639,0.00379354,2564.4,2564.1,1.5951632]
[1646772069837,0.00379354,2564.4,2564.2,0.03681281]
[1646772070442,5.45147,2564.5,2564.2,0.03681281]
[1646772070839,0.00379356,2564.4,2564.2,0.03681281]
[1646772071041,17.15526356,2564.5,2564.2,0.03681281]
[1646772071246,11.8,2564.3,2564.2,0.03681281]
[1646772071446,15.3,2564.3,2564.2,0.03681281]
[1646772072245,3.5,2564.3,2564.2,0.03681281]
[1646772073106,3.11491371,2564.4,2564.2,0.03681281]
[1646772073507,15.3,2564.3,2564.2,0.03681281]
[1646772074009,15.3,2564.3,2563.2,0.70118913]
[1646772074010,0.3878,2564.1,2563.2,0.70118913]
[1646772074216,11.8,2563.5,2563.3,1.59522192]
[1646772074412,0.468,2563.4,2563.0,0.70118913]
[1646772074610,0.468,2563.4,2562.9,0.70118913]
[1646772074808,4.3734115,2563.4,2562.8,0.70118913]
[1646772075007,4.34089951,2563.4,2562.8,0.70118913]
[1646772075211,0.97629,2563.3,2562.8,0.70118913]
[1646772075410,1.952,2563.8,2562.8,0.70118913]
[1646772075611,0.18662879,2563.9,2563.5,0.85069443]
[1646772075612,0.57791561,2563.9,2563.5,0.85069443]
[1646772076242,0.57791561,2563.9,2563.0,0.70498387]
[1646772076542,1.94158561,2563.9,2563.0,0.70118913]
[1646772076747,1.94158561,2563.9,2562.9,0.70118913]
[1646772076943,1.94158561,2563.9,2563.6,0.00379434]
[1646772076944,1.55378561,2563.9,2563.6,0.00379434]
[1646772077544,1.95214,2563.8,2563.6,0.00379434]
[1646772077744,1.95214,2563.8,2562.8,0.70214913]
[1646772077944,0.97587,2563.9,2562.8,0.70118913]
[1646772078146,2.4499,2564.2,2562.9,0.70118913]
[1646772078647,0.59700502,2564.6,2563.0,1.08898913]
[1646772078847,0.59700502,2564.6,2563.1,0.3878]
[1646772078848,3.40160502,2564.6,2563.1,0.3878]
[1646772079047,3.5,2564.5,2563.0,2.36469913]
[1646772079251,0.3,2564.0,2563.4,0.0015797]
[1646772079644,1.27582,2564.0,2563.4,0.0015797]
[1646772079900,0.97582,2564.0,2563.4,0.0015797]
[1646772080089,0.97582,2564.0,2563.1,0.66866943]
[1646772080290,3.5,2564.1,2563.7,0.05973958]
[1646772080490,2.2282,2564.5,2563.7,0.05973958]
[1646772080491,3.8878,2564.4,2563.7,0.05973958]
[1646772080890,4.8878,2564.4,2563.7,0.05973958]
[1646772081494,5.86353,2564.4,2563.7,0.05973958]
[1646772081693,11.8,2564.3,2563.9,0.00367029]
[1646772081901,15.3,2564.2,2563.9,0.00367029]
[1646772082196,18.95462879,2564.2,2563.9,0.00367029]
[1646772082395,16.95462879,2564.2,2563.9,0.00367029]
[1646772082595,0.18662879,2564.1,2563.7,0.05973958]
[1646772082797,0.18662879,2564.1,2563.9,0.00357176]
[1646772082798,13.2441063,2564.0,2563.9,0.00357176]
[1646772083098,4.15462879,2564.0,2563.9,0.00357176]
[1646772083295,0.65462879,2564.0,2563.9,0.00357176]
[1646772083497,0.468,2564.0,2563.9,0.00357176]
[1646772083952,0.468,2564.0,2563.7,0.05973958]
[1646772084151,0.768,2564.0,2563.8,0.00357182]
[1646772084353,2.1757,2564.4,2563.8,0.00357182]
[1646772084952,1.2,2564.4,2563.7,0.05973958]
[1646772085153,1.2,2564.4,2564.0,0.03224476]
[1646772085353,1.17206088,2564.4,2564.1,0.76990572]
[1646772085552,1.17206088,2564.4,2564.0,0.03224476]
[1646772086153,1.17206088,2564.4,2564.0,0.02867303]
[1646772086553,1.17206088,2564.4,2564.1,0.0035116]
[1646772087587,1.17206088,2564.4,2564.1,0.00351164]
[1646772088492,1.17206088,2564.4,2564.0,0.71647303]
[1646772088888,1.17206088,2564.4,2564.1,0.00351164]
[1646772089290,0.003511,2564.5,2564.4,0.52911049]
[1646772089692,0.32482351,2565.3,2564.4,1.21691049]
[1646772089890,2.07984687,2565.7,2564.4,1.21691049]
[1646772090095,0.00351987,2564.6,2564.4,4.21691049]
[1646772090294,1.987e-05,2564.6,2564.5,1.83075]
[1646772090690,1.987e-05,2564.6,2564.5,2.13075]
[1646772090895,1.987e-05,2564.6,2564.5,18.8054603]
[1646772091142,3.51407078,2566.2,2564.8,12.1878]
[1646772091143,0.93464687,2566.2,2564.8,12.1878]
[1646772091342,6.70721273,2566.7,2565.4,0.3878]
[1646772091343,4.43464687,2566.5,2565.4,0.3878]
[1646772091551,0.93464687,2566.6,2566.1,0.65943775]
[1646772091741,6.4575,2566.7,2566.1,0.65943775]
[1646772091742,0.93464687,2566.7,2566.1,0.65943775]
[1646772091942,1.2411,2566.9,2566.1,0.65943775]
[1646772091943,0.93464687,2566.8,2566.1,0.65943775]
[1646772092143,0.93464687,2566.8,2566.2,0.97452]
[1646772092349,3.8,2567.0,2566.2,0.97452]
[1646772092350,4.73464687,2567.0,2566.2,0.97452]
[1646772092540,4.73464687,2567.0,2566.1,1.63394285]
[1646772092541,0.93464687,2567.0,2566.1,1.63394285]
[1646772092741,0.93464687,2567.0,2566.1,0.95943775]
[1646772092946,2.0,2567.1,2566.1,0.65943775]
[1646772092947,2.93464687,2567.1,2566.1,0.65943775]
[1646772093143,3.90931687,2567.1,2566.5,0.7826885]
[1646772093343,2.97467,2567.1,2566.5,0.7826885]
[1646772093843,0.00379626,2566.7,2566.5,0.7826885]
[1646772094644,2.17574687,2567.4,2566.5,1.4704885]
[1646772094906,0.00379626,2566.7,2566.5,1.4704885]
[1646772095296,0.00379626,2566.7,2566.5,1.0826885]
[1646772095495,0.00379626,2566.7,2566.5,0.7826885]
[1646772095897,3.5,2567.4,2566.0,1.0]
[1646772096097,3.5,2567.4,2565.3,2.2788]
[1646772096098,0.00379626,2566.7,2565.3,2.2788]
[1646772096299,0.00379626,2566.7,2565.4,1.98167767]
[1646772096498,0.00379626,2566.7,2565.5,1.59395876]
[1646772097100,0.97477,2566.7,2566.5,0.92098444]
[1646772097302,0.18662355,2566.9,2566.5,0.92098444]
[1646772097504,0.18662355,2566.9,2565.5,0.6878]
[1646772097701,0.18662355,2566.9,2565.8,0.97461]
[1646772097902,0.18662355,2566.9,2565.5,0.6878]
[1646772098100,4.07442355,2566.9,2565.6,1.59399186]
[1646772098501,0.00379064,2566.5,2566.1,0.87484333]
[1646772098745,0.00379064,2566.5,2565.5,0.3]
[1646772098944,0.00379064,2566.5,2565.6,1.59401549]
[1646772099348,0.97483,2566.6,2565.6,0.3]
[1646772099546,1.36263,2566.6,2565.6,0.3]
[1646772099749,0.00379083,2566.2,2564.6,1.91049331]
[1646772099949,0.85959083,2566.2,2564.8,1.59420346]
[1646772100151,0.85959083,2566.2,2564.9,1.59420346]
[1646772100152,0.00379083,2566.2,2564.9,1.59420346]
[1646772100346,0.00379083,2566.2,2564.7,13.39420346]
[1646772100547,0.00379083,2566.2,2564.8,1.59420346]
[1646772100745,0.00379083,2566.2,2565.0,0.3878]
[1646772100947,3.5,2566.5,2565.2,0.3878]
[1646772101151,0.97482,2566.6,2566.1,0.8344006]
[1646772101353,0.3878,2566.5,2565.1,1.949518]
[1646772101556,0.3878,2566.3,2564.5,1.1404]
[1646772101753,1.36286,2566.0,2564.6,1.98202687]
[1646772101951,1.36286,2566.0,2564.7,1.59422687]
[1646772101952,3.5,2565.9,2564.7,1.59422687]
[1646772102252,3.50349558,2565.9,2564.8,1.59422687]
[1646772102489,3.50349558,2565.9,2565.2,0.90905779]
[1646772102490,0.00349558,2565.9,2565.2,0.90905779]
[1646772102693,0.3878,2565.7,2564.4,0.52911049]
[1646772102892,3.8878,2565.6,2564.5,1.59441072]
[1646772103094,3.5,2565.5,2564.5,1.59441072]
[1646772103390,0.3878,2565.6,2564.5,1.59441072]
[1646772103790,0.00342567,2565.7,2564.9,0.90350513]
[1646772103992,0.3878,2565.5,2564.4,0.52911049]
[1646772104189,0.3878,2565.3,2564.5,1.59461352]
[1646772104389,12.268,2565.5,2564.5,1.59461352]
[1646772104390,3.8878,2565.2,2564.5,1.59461352]
[1646772104790,3.8878,2565.2,2564.4,0.52911049]
[1646772104988,1.95093,2565.3,2565.1,0.01661164]
[1646772105390,3.5,2565.2,2565.1,0.01661164]
[1646772105788,3.5,2565.2,2564.4,0.52911049]
[1646772105789,11.8,2565.1,2564.4,0.52911049]
[1646772105992,11.8,2564.9,2564.4,0.52911049]
[1646772106243,11.8,2564.9,2564.1,0.00360518]
[1646772106244,0.9759337,2564.6,2564.1,0.00360518]
[1646772106442,15.768,2564.5,2564.1,0.00360518]
[1646772106641,3.968,2564.5,2564.1,0.00360518]
[1646772106841,0.468,2564.5,2564.1,0.00360518]
[1646772107046,0.97598,2564.6,2563.6,0.70512899]
[1646772107244,0.00337083,2564.7,2564.1,0.00337163]
[1646772108043,0.00337083,2564.7,2564.1,0.85433327]
[1646772108345,0.00337086,2564.7,2564.1,1.15433331]
[1646772109041,1.1421,2565.1,2564.1,1.15433331]
[1646772109042,1.1421,2565.1,2564.1,1.53876164]
[1646772109243,1.1427,2565.2,2565.1,0.86864547]
[1646772109445,0.97533,2565.4,2565.1,0.86864547]
[1646772109644,0.97533,2565.4,2564.8,0.02420502]
[1646772110788,0.0036129,2565.2,2564.9,0.76372208]
[1646772111591,1.1994,2565.9,2564.9,0.76372208]
[1646772111792,0.00361293,2565.2,2564.9,0.76372208]
[1646772112794,0.3878,2565.8,2564.8,0.02420502]
[1646772112998,0.00360742,2565.2,2564.8,0.02420502]
[1646772113838,0.3878,2565.6,2564.8,0.02420502]
[1646772114241,0.00366971,2565.1,2564.8,0.82410577]
[1646772114641,0.00366971,2565.1,2564.8,0.02420502]
[1646772115040,0.468,2565.5,2565.0,0.02499144]
[1646772115442,0.97538,2565.4,2565.0,0.02499144]
[1646772115646,0.00366974,2565.1,2565.0,0.02499144]
[1646772116644,15.30366974,2565.1,2565.0,0.02499144]
[1646772116844,3.67985269,2565.2,2565.0,0.02499144]
[1646772117045,0.97543,2565.1,2565.0,0.02499144]
[1646772117248,2.70428269,2565.2,2565.0,0.02499144]
[1646772117897,2.70397107,2565.2,2565.0,0.02499144]
[1646772118099,2.70397107,2565.2,2565.0,0.85515246]
[1646772118301,0.00337107,2565.2,2565.0,0.85515246]
[1646772118998,0.00674211,2565.2,2565.0,0.85515246]
[1646772119199,0.00337104,2565.2,2565.0,0.02499144]
[1646772119399,1.95434104,2565.2,2565.0,0.04976985]
[1646772120099,11.8,2565.1,2565.0,0.04976985]
[1646772120307,17.3,2565.0,2564.9,9.716e-05]
[1646772120698,17.48662355,2565.0,2564.9,9.716e-05]
[1646772121148,5.68662355,2565.0,2564.9,9.716e-05]
[1646772121340,17.48662355,2565.0,2564.9,9.716e-05]
[1646772121943,20.76162355,2565.0,2564.9,9.716e-05]
[1646772122142,21.76162355,2565.0,2564.9,9.716e-05]
[1646772122345,2.92758,2564.7,2564.1,0.0033853]
[1646772123551,1.153,2564.9,2564.1,3.5033853]
[1646772123746,0.00338755,2564.7,2564.1,0.00677365]
[1646772123945,0.00338755,2564.7,2564.6,0.75971485]
[1646772124749,11.8,2565.5,2564.6,0.75971485]
[1646772124987,0.00338364,2564.8,2564.6,0.75971485]
[1646772125188,0.00338364,2564.8,2564.1,0.00338451]
[1646772125594,0.39118364,2564.8,2564.1,0.00338451]
[1646772125993,0.3878,2564.8,2564.0,1.59480142]
[1646772126201,0.00338357,2564.7,2564.1,0.90878453]
[1646772126794,0.00338357,2564.7,2564.2,1.59487164]
[1646772126995,0.00338357,2564.7,2564.1,0.00338437]
[1646772126996,11.8,2564.5,2564.1,0.00338437]
[1646772127197,13.75174,2564.5,2564.0,1.5949327]
[1646772127394,13.75174,2564.5,2564.1,0.00343125]
[1646772127795,11.8,2564.3,2564.1,0.00343125]
[1646772127999,11.8,2564.2,2564.1,0.00343125]
[1646772128195,11.95334099,2564.2,2564.1,0.00343125]
[1646772128395,14.90544099,2564.2,2563.9,0.0198362]
[1646772128651,15.90544099,2564.2,2564.1,0.00372639]
[1646772128845,15.71899616,2564.2,2564.1,0.00372639]
[1646772129041,15.90544099,2564.2,2564.1,0.00372639]
[1646772129442,18.24300616,2564.1,2563.9,0.0198362]
[1646772129642,23.12351146,2564.1,2563.9,0.0198362]
[1646772129845,18.80995629,2564.1,2564.0,0.00372642]
[1646772130247,18.80995629,2564.1,2563.9,0.00376262]
[1646772130448,17.73489616,2564.0,2563.9,0.00376262]
[1646772130845,0.97624,2563.7,2563.0,0.70118913]
[1646772131048,11.76689616,2563.6,2563.0,0.70118913]
[1646772131250,0.3878,2563.7,2563.0,0.70118913]
[1646772131458,0.3878,2563.8,2563.0,0.70118913]
[1646772131853,0.3878,2563.8,2563.1,0.70118913]
[1646772132049,1.95252,2563.6,2563.1,0.70118913]
[1646772132490,1.95252,2563.6,2563.1,1.53156572]
[1646772132890,1.95252,2563.6,2563.1,0.70118913]
[1646772133292,13.75252,2563.6,2563.0,0.70118913]
[1646772133691,1.95252,2563.6,2563.0,0.70118913]
[1646772134101,0.9762613,2563.5,2563.0,0.70118913]
[1646772134295,3.31657,2563.6,2563.0,0.70118913]
[1646772134296,0.97618,2563.4,2563.0,0.70118913]
[1646772134698,2.25188,2564.0,2563.2,0.00379432]
[1646772135097,3.5,2563.9,2563.2,0.00379432]
[1646772135496,12.77613,2563.7,2563.2,0.00379432]
[1646772135695,15.3,2563.6,2563.0,0.70118913]
[1646772135899,17.25229,2563.6,2563.4,0.00379416]
[1646772136154,15.3,2563.5,2563.4,0.00379416]
[1646772136542,1.95229,2563.6,2563.4,0.00379416]
[1646772136747,5.84009,2563.6,2562.9,0.70118913]
[1646772136948,0.9763111,2563.4,2562.8,0.70118913]
[1646772137148,2.9289311,2563.4,2563.3,0.00366773]
[1646772137347,3.9289311,2563.4,2563.3,0.00366773]
[1646772137546,15.7289311,2563.4,2563.3,0.00366773]
[1646772137947,1.95262,2563.4,2563.3,0.00366773]
[1646772138347,1.95262,2563.4,2563.2,0.0036678]
[1646772139149,0.9763,2563.6,2563.1,0.75668448]
[1646772139353,0.9763,2563.6,2563.2,0.00354404]
[1646772139991,0.9763,2563.6,2563.3,0.1634535]
[1646772140594,0.9763,2563.6,2563.3,0.16712397]
[1646772141401,3.1395576,2564.0,2563.3,0.16712397]
[1646772141402,0.9758,2564.0,2563.3,0.16712397]
[1646772141595,0.70975667,2564.2,2563.3,0.1634535]
[1646772141997,0.70975667,2564.2,2563.3,0.16712394]
[1646772142193,0.70975667,2564.2,2563.3,0.48004394]
[1646772142395,0.70975667,2564.2,2563.3,1.40100274]
[1646772142794,0.70975667,2564.2,2563.3,1.3973323]
[1646772142994,0.70975667,2564.2,2563.6,0.00366906]
[1646772143502,12.77578,2564.0,2563.6,0.00366906]
[1646772143750,3.5,2563.9,2563.6,0.00366906]
[1646772144148,3.5,2563.9,2563.3,0.4763735]